[Event "68th Warsaw-ch-A 2019"]
[Site "Warsaw"]
[Date "2019.11.17"]
[Round "6.8"]
[White "Cyra, Dariusz"]
[Black "Liberadzki, Slawomir"]
[Result "1-0"]
[ECO "D00"]
[WhiteElo "1818"]
[BlackElo "1999"]
[Annotator "NA RC"]
[PlyCount "139"]
[EventDate "2019.11.14"]
[EventType "swiss"]
[EventCountry "POL"]
[SourceTitle "playchess.com"]
[Source "ChessBase"]
[SourceQuality "1"]
[TimeControl "5400+30"]

1. d4 {[%emt 0:00:00]} d5 {[%emt 0:13:12]} 2. Bf4 {[%emt 0:00:16]} Nf6 {[%emt 0:00:57]} 3. e3 {[%emt 0:00:09]} Bf5 {[%emt 0:02:23]} 4. c4 {[%emt 0:01:14]} c6 {[%emt 0:00:37]} 5. Nc3 {[%emt 0:00:29]} e6 {[%emt 0:01:25]} 6. Qb3 {[%emt 0:01:24] D10: Slav Defence: 3 cxd5 (without early Nf3) and 3 Nc3} (6. Nf3 Nbd7 7. Be2 Be7 8. h3 h6 9. O-O O-O 10. a3 a6 11. Rc1 Ne4 12. Qb3 Qb6 13. Qa2 Rac8 14. Rfd1 Rfd8 15. b4 dxc4 16. Nxe4 Bxe4 17. Nd2 Bd3 18. Nxc4 Bxc4 19. Rxc4 {1-0 (59) Laznicka,V (2647)-Short,N (2678) Riadh 2017}) 6... Qb6 {[%emt 0:03:48]} 7. c5 {[%emt 0:00:53]} Qxb3 {[%emt 0:00:18]} 8. axb3 {[%emt 0:00:02]} Nfd7 {[%emt 0:14:12]} 9. b4 {[%emt 0:03:09]} f6 {[%emt 0:01:05]} 10. Nf3 {[%emt 0:07:16]} g5 {[%emt 0:04:05]} 11. Bc7 $146 {[%emt 0:01:25]} ({Predecessor:} 11. Bg3 h5 12. h3 Kf7 {1-0 (39) Londyn,R (2422)-Cap,A (2288) Czech Republic 2017}) 11... Be7 {[%emt 0:02:56]} 12. b5 {[%emt 0:15:19]} Bd8 {[%emt 0:01:21]} 13. Bd6 {[%emt 0:02:02]} Be7 {[%emt 0:00:38]} 14. Bc7 {[%emt 0:00:10]} Bd8 {[%emt 0:00:07]} 15. b6 {[%emt 0:13:26]} a6 $2 {[%emt 0:04:38]} (15... Na6 $1 $14) 16. b4 {[%emt 0:01:15]} O-O {[%emt 0:05:23]} 17. Nd2 {[%emt 0:02:05]} Re8 {[%emt 0:07:55]} 18. Nb3 {[%emt 0:00:28]} e5 {[%emt 0:10:39]} 19. Kd2 {[%emt 0:03:24]} Nf8 {[%emt 0:01:16]} 20. Na5 {[%emt 0:00:25]} Bc8 {[%emt 0:01:23]} 21. Bd6 {[%emt 0:10:25]} Nbd7 {[%emt 0:06:57]} 22. Be2 {[%emt 0:01:00]} Be7 {[%emt 0:04:57]} 23. Bc7 {[%emt 0:01:22]} Bd8 {[%emt 0:00:37]} 24. Bxd8 {[%emt 0:02:28]} Rxd8 {[%emt 0:00:06]} 25. Bg4 {[%emt 0:02:48]} Re8 {[%emt 0:00:10]} 26. Bh5 {[%emt 0:05:45]} Re7 {[%emt 0:00:19]} 27. b5 {[%emt 0:02:16]} Nb8 {[%emt 0:06:41]} 28. bxc6 {[%emt 0:05:09]} bxc6 {[%emt 0:00:01]} 29. Bf3 {[%emt 0:01:40]} e4 {[%emt 0:02:06]} 30. Be2 {[%emt 0:00:02]} f5 {[%emt 0:01:15]} 31. f3 {[%emt 0:00:58]} Ne6 {[%emt 0:01:16]} 32. fxe4 {[%emt 0:00:25]} fxe4 {[%emt 0:00:21]} 33. Bg4 {[%emt 0:01:34]} Bd7 {[%emt 0:00:01]} 34. h3 {[%emt 0:02:01]} Nd8 {[%emt 0:01:11]} 35. Be2 {[%emt 0:01:20]} Bc8 {[%emt 0:00:23]} 36. Na2 {[%emt 0:00:54]} Nb7 {[%emt 0:00:22]} 37. Nb4 {[%emt 0:00:04]} Nxa5 {[%emt 0:00:36]} 38. Rxa5 {[%emt 0:00:02]} Rf7 {[%emt 0:00:32]} 39. Rf1 {[%emt 0:09:44]} Rxf1 {[%emt 0:00:08]} 40. Bxf1 {[%emt 0:00:01]} Kf7 {[%emt 0:00:35]} 41. Be2 {[%emt 0:00:35]} Kg6 {[%emt 0:00:12]} 42. Bg4 {[%emt 0:00:58]} Bxg4 {[%emt 0:01:02]} 43. hxg4 {[%emt 0:00:02]} h5 {[%emt 0:01:17]} 44. gxh5+ {[%emt 0:01:11]} Kxh5 {[%emt 0:00:01]} 45. Ke2 {[%emt 0:00:24]} Kh4 {[%emt 0:00:27]} 46. Kf2 {[%emt 0:00:25]} g4 {[%emt 0:00:11]} 47. Kg1 {[%emt 0:01:56]} Kg3 {[%emt 0:00:40]} 48. Na2 {[%emt 0:00:24]} Nd7 {[%emt 0:00:51]} 49. Nc3 {[%emt 0:00:19]} Kh4 {[%emt 0:00:52]} 50. Ne2 {[%emt 0:00:17]} g3 {[%emt 0:00:31]} 51. Nf4 {[%emt 0:00:22]} Nf6 {[%emt 0:01:07]} 52. Kf1 {[%emt 0:00:19]} Ng4 {[%emt 0:00:48]} 53. Ke2 {[%emt 0:00:02]} Nf2 {[%emt 0:00:41]} 54. Ng6+ {[%emt 0:00:37]} Kg5 {[%emt 0:00:43]} 55. Ne5 {[%emt 0:00:18]} Nd3 {[%emt 0:00:37]} 56. Nxc6 {[%emt 0:01:21]} Rf8 {[%emt 0:00:06]} 57. Kd2 {[%emt 0:01:24]} Rf2+ {[%emt 0:00:28]} 58. Kc3 {[%emt 0:00:02]} Rxg2 {[%emt 0:00:59]} 59. b7 {[%emt 0:00:32]} Rb2 {[%emt 0:00:28]} 60. b8=Q {[%emt 0:00:13]} Rxb8 {[%emt 0:00:05]} 61. Nxb8 {[%emt 0:00:02]} g2 {[%emt 0:00:56]} 62. Ra1 {[%emt 0:00:21]} Nf2 {[%emt 0:00:35]} 63. Rg1 {[%emt 0:00:28]} Kg4 {[%emt 0:00:22]} 64. Rxg2+ {[%emt 0:00:08]} Kf3 {[%emt 0:00:04]} 65. Rxf2+ {[%emt 0:00:20]} Kxf2 {[%emt 0:00:04]} 66. Kd2 {[%emt 0:00:13]} a5 {[%emt 0:00:14]} 67. c6 {[%emt 0:00:01]} a4 {[%emt 0:00:27]} 68. c7 {[%emt 0:00:02]} a3 {[%emt 0:00:15]} 69. c8=Q {[%emt 0:00:10]} a2 {[%emt 0:00:06]} 70. Qa6 {[%emt 0:00:12]} 1-0

[Event "68th Warsaw-ch-A 2019"]
[Site "Warsaw"]
[Date "2019.11.17"]
[Round "6.9"]
[White "Grochowski, Kosma"]
[Black "Sadowski, Miroslaw"]
[Result "0-1"]
[ECO "B06"]
[WhiteElo "1920"]
[BlackElo "1998"]
[Annotator "NA RC"]
[PlyCount "62"]
[EventDate "2019.11.14"]
[EventType "swiss"]
[EventCountry "POL"]
[SourceTitle "playchess.com"]
[Source "ChessBase"]
[SourceQuality "1"]
[TimeControl "5400+30"]

1. e4 {[%emt 0:07:27]} g6 {[%emt 0:00:00]} 2. d4 {[%emt 0:00:52]} Bg7 {[%emt 0:00:00]} 3. Nf3 {[%emt 0:00:32]} c6 {[%emt 0:03:22]} 4. c4 {[%emt 0:04:13]} d6 {[%emt 0:05:08]} 5. h3 {[%emt 0:00:33]} Nf6 {[%emt 0:01:03]} 6. Nc3 {[%emt 0:00:12]} O-O {[%emt 0:00:34]} 7. Bg5 {[%emt 0:04:19]} Qa5 {[%emt 0:06:05]} 8. Qd2 {[%emt 0:06:53]} Nbd7 {[%emt 0:00:14]} 9. Be2 {[%emt 0:04:25]} Re8 {[%emt 0:00:19]} 10. b4 {[%emt 0:09:34]} Qxb4 {[%emt 0:01:26]} 11. e5 {[%emt 0:00:18]} dxe5 {[%emt 0:00:18]} 12. dxe5 {[%emt 0:00:33]} Nh5 {[%emt 0:02:10]} 13. Rb1 {[%emt 0:06:32]} Qa5 {[%emt 0:01:22]} 14. Ne4 $19 {[%emt 0:19:53]} Qxd2+ {[%emt 0:01:39]} 15. Nfxd2 {[%emt 0:02:40]} Nxe5 {[%emt 0:00:58]} 16. f4 {[%emt 0:01:29]} Nd7 {[%emt 0:00:29]} 17. O-O {[%emt 0:02:16]} Nhf6 {[%emt 0:06:49]} 18. Bf3 {[%emt 0:01:52]} Nxe4 {[%emt 0:06:01]} 19. Nxe4 {[%emt 0:00:03]} f5 {[%emt 0:01:44]} 20. Nd2 {[%emt 0:01:51]} e5 {[%emt 0:01:55]} 21. fxe5 {[%emt 0:01:47]} Nxe5 {[%emt 0:00:15]} 22. Rfe1 {[%emt 0:00:36]} Kf8 {[%emt 0:03:41]} 23. Be2 {[%emt 0:01:07]} b6 {[%emt 0:03:26]} 24. a4 {[%emt 0:00:32]} Nf7 {[%emt 0:05:06]} 25. Bh4 {[%emt 0:06:23]} Bc3 {[%emt 0:01:08]} 26. Rbd1 {[%emt 0:00:03]} Bb7 {[%emt 0:02:01]} 27. Bf3 {[%emt 0:00:48]} Rxe1+ {[%emt 0:02:01]} 28. Bxe1 {[%emt 0:00:04]} Rd8 {[%emt 0:00:17]} 29. Kf2 {[%emt 0:01:14]} Ne5 {[%emt 0:01:50]} 30. Nb3 {[%emt 0:03:13]} Rxd1 {[%emt 0:05:20]} 31. Bxd1 {[%emt 0:00:00]} Nd3+ {[%emt 0:00:00]} 0-1

[Event "68th Warsaw-ch-A 2019"]
[Site "Warsaw"]
[Date "2019.11.17"]
[Round "6.10"]
[White "Poniewierski, Piotr"]
[Black "Urbaniak, Karol"]
[Result "1-0"]
[ECO "A04"]
[WhiteElo "1858"]
[BlackElo "1812"]
[Annotator "NA RC"]
[PlyCount "137"]
[EventDate "2019.11.14"]
[EventType "swiss"]
[EventCountry "POL"]
[SourceTitle "playchess.com"]
[Source "ChessBase"]
[SourceQuality "1"]
[TimeControl "5400+30"]

1. Nf3 {[%emt 0:00:00]} g6 {[%emt 0:08:00]} 2. g3 {[%emt 0:00:20]} f5 {[%emt 0:00:45]} (2... Bg7 3. Bg2 d6 4. d4 Bd7 5. O-O Qc8 6. c4 Nc6 7. Nc3 Bh3 8. e3 h5 9. Ne4 h4 10. Nxh4 Bf6 11. Nxf6+ Nxf6 12. f4 Bxg2 13. Kxg2 {0-1 (33) Hou,Y (2658)-Nakamura,H (2777) chess.com INT 2018}) 3. d4 {[%emt 0:00:15]} Bg7 {[%emt 0:00:12]} 4. c3 {[%emt 0:00:29]} Nf6 {[%emt 0:00:07]} 5. Qb3 {[%emt 0:00:15]} d5 {[%emt 0:01:16]} 6. Bg2 {[%emt 0:02:30] A04: Unusual lines after 1 Nf3 and King's Indian Attack} O-O {[%emt 0:02:45]} 7. O-O {[%emt 0:00:13]} c6 {[%emt 0:00:50]} 8. Bf4 {[%emt 0:04:28]} Nbd7 {[%emt 0:02:04]} 9. Na3 $146 {[%emt 0:07:37]} ({Predecessor:} 9. Nbd2 h6 10. Be5 g5 11. c4 {1-0 (43) Guerra Bastida,D (2273)-Touzane,O (2348) Linares 2000}) 9... Nh5 {[%emt 0:04:10]} 10. Bd2 {[%emt 0:04:36]} Kh8 {[%emt 0:03:33]} 11. c4 {[%emt 0:03:19]} e6 {[%emt 0:00:21]} 12. Ng5 {[%emt 0:06:39]} Qf6 {[%emt 0:03:02]} 13. cxd5 {[%emt 0:05:44]} exd5 {[%emt 0:01:16]} 14. Nf3 {[%emt 0:03:51]} Nb6 {[%emt 0:02:57]} 15. Ba5 {[%emt 0:02:13]} Nc4 {[%emt 0:03:55]} 16. Nxc4 {[%emt 0:01:41]} dxc4 {[%emt 0:00:10]} 17. Qxc4 {[%emt 0:01:05]} Be6 {[%emt 0:00:06]} 18. Qc2 {[%emt 0:05:08]} f4 {[%emt 0:03:21]} 19. Bc7 {[%emt 0:02:33]} Bf5 {[%emt 0:01:44]} 20. Qb3 {[%emt 0:02:22]} Qe7 {[%emt 0:02:57]} 21. Be5 {[%emt 0:00:57]} fxg3 {[%emt 0:01:17]} 22. Bxg7+ {[%emt 0:01:15]} Nxg7 {[%emt 0:00:59]} 23. hxg3 {[%emt 0:00:22]} Qxe2 {[%emt 0:02:07]} 24. Qxb7 {[%emt 0:03:51]} Rab8 {[%emt 0:01:09]} 25. Qxa7 {[%emt 0:02:04]} Rxb2 {[%emt 0:01:47]} 26. Rae1 {[%emt 0:04:16]} Qc2 {[%emt 0:03:25]} 27. Rc1 {[%emt 0:06:17]} Qe2 {[%emt 0:02:13]} 28. Qc5 {[%emt 0:06:05]} Ne6 {[%emt 0:09:40]} 29. Qe7 {[%emt 0:05:06]} Kg8 {[%emt 0:07:01]} 30. Rce1 {[%emt 0:03:08]} Qc4 {[%emt 0:00:34]} 31. d5 {[%emt 0:02:20]} Rf7 {[%emt 0:07:34]} 32. Qe8+ {[%emt 0:00:24]} Rf8 {[%emt 0:00:06]} 33. Qxc6 {[%emt 0:00:43]} Qxc6 {[%emt 0:00:22]} 34. dxc6 {[%emt 0:00:08]} Nc5 {[%emt 0:01:22]} 35. Re7 {[%emt 0:02:13]} Be4 {[%emt 0:06:09]} 36. Re5 {[%emt 0:01:40]} Bxf3 {[%emt 0:00:44]} 37. Rxc5 {[%emt 0:01:39]} Bxg2 {[%emt 0:00:40]} 38. Kxg2 {[%emt 0:00:09]} Rxa2 {[%emt 0:02:13]} 39. c7 {[%emt 0:00:31]} Raa8 {[%emt 0:00:34]} 40. Rd1 {[%emt 0:00:19]} Kg7 {[%emt 0:04:13]} 41. Rd7+ {[%emt 0:01:23]} Kh6 {[%emt 0:00:07]} 42. Rcd5 {[%emt 0:01:40]} Ra2 {[%emt 0:03:55]} 43. Rd8 {[%emt 0:02:14]} Rfxf2+ {[%emt 0:01:00]} 44. Kh3 {[%emt 0:00:29]} Rh2+ {[%emt 0:00:20]} 45. Kg4 {[%emt 0:00:07]} Ra4+ {[%emt 0:00:23]} 46. Kf3 {[%emt 0:00:39]} Ra3+ {[%emt 0:00:20]} 47. Ke4 {[%emt 0:04:09]} Re2+ {[%emt 0:00:44]} 48. Kd4 {[%emt 0:01:20]} Rd2+ {[%emt 0:00:19]} 49. Ke5 {[%emt 0:01:21]} Re2+ {[%emt 0:01:23]} 50. Kd6 {[%emt 0:00:10]} Ra6+ {[%emt 0:00:09]} 51. Kd7 {[%emt 0:00:39]} Ra7 {[%emt 0:00:03]} 52. Rd6 {[%emt 0:01:23]} Kg7 {[%emt 0:01:34]} 53. Rb8 {[%emt 0:00:43]} Kf7 $18 {[%emt 0:00:34]} 54. Rh8 {[%emt 0:00:43]} Kg7 {[%emt 0:02:42]} 55. Rb8 {[%emt 0:00:13]} Kf7 {[%emt 0:00:35]} 56. Kc8 {[%emt 0:00:21]} h5 {[%emt 0:03:35]} 57. Rb3 {[%emt 0:00:39]} Re8+ {[%emt 0:00:57]} 58. Rd8 {[%emt 0:00:58]} Re1 {[%emt 0:01:38]} 59. Kb8 {[%emt 0:00:37]} Rea1 {[%emt 0:00:52]} 60. c8=Q {[%emt 0:00:28]} Ra8+ {[%emt 0:00:02]} 61. Kb7 {[%emt 0:00:31]} R1a7+ {[%emt 0:00:09]} 62. Kb6 {[%emt 0:00:20]} Rxc8 {[%emt 0:00:05]} 63. Rxc8 {[%emt 0:00:14]} Re7 {[%emt 0:00:05]} 64. Rc7 {[%emt 0:00:07]} Rxc7 {[%emt 0:00:03]} 65. Kxc7 {[%emt 0:00:06]} Kf6 {[%emt 0:00:02]} 66. Rb5 {[%emt 0:00:58]} g5 {[%emt 0:00:05]} 67. Kd7 {[%emt 0:00:12]} h4 {[%emt 0:00:06]} 68. gxh4 {[%emt 0:00:16]} gxh4 {[%emt 0:00:08]} 69. Rh5 {[%emt 0:00:08]} 1-0

[Event "68th Warsaw-ch-A 2019"]
[Site "Warsaw"]
[Date "2019.11.17"]
[Round "6.12"]
[White "Korcz, Daniel"]
[Black "Piotrowski, Arkadiusz"]
[Result "1-0"]
[ECO "B38"]
[WhiteElo "1807"]
[BlackElo "1962"]
[Annotator "NA RC"]
[PlyCount "139"]
[EventDate "2019.11.14"]
[EventType "swiss"]
[EventCountry "POL"]
[SourceTitle "playchess.com"]
[Source "ChessBase"]
[SourceQuality "1"]
[TimeControl "5400+30"]

1. e4 c5 2. Nf3 d6 3. d4 cxd4 4. Nxd4 Nf6 5. f3 g6 6. c4 Bg7 7. Be3 Nc6 8. Nc3 Bd7 9. Qd2 h5 10. Nc2 Qa5 11. a3 O-O 12. b4 Qd8 13. Be2 Re8 14. O-O Rc8 15. Rac1 Ne5 16. c5 dxc5 17. Bxc5 b6 18. Be3 Nc4 19. Bxc4 Rxc4 20. Nd4 Qc8 21. Ncb5 Rxc1 22. Rxc1 Qb8 23. Nc6 Bxc6 24. Rxc6 Rd8 25. Qc2 Qe5 26. Rc8 Qa1+ 27. Qc1 Qxc1+ 28. Rxc1 Rd3 29. Kf2 a6 30. Rc8+ Kh7 31. Nc7 Rxa3 32. Bxb6 Nd7 33. Ba5 Ra2+ 34. Kg3 Be5+ 35. Kh3 Nf6 36. Nxa6 g5 37. Rc5 g4+ 38. fxg4 hxg4+ 39. Kh4 Bd6 40. Rf5 Rxg2 41. e5 Rxh2+ 42. Kg3 Rh3+ 43. Kg2 Kg6 44. Rxf6+ exf6 45. exd6 Rd3 46. Bc7 f5 47. Nc5 Rd2+ 48. Kf1 Kf6 49. Bd8+ Ke5 50. d7 Rd1+ 51. Ke2 Rd5 52. Bc7+ Kd4 53. d8=Q Rxd8 54. Bxd8 Kc4 55. Nd3 f4 56. Be7 f3+ 57. Kf2 f5 58. Nf4 Kb5 59. Bd6 Kc4 60. Kg3 Kb5 61. Nd3 Kc4 62. Nf2 Kb5 63. Kf4 Kc4 64. Nh1 Kb5 65. Bf8 Kc4 66. Ng3 Kb5 67. Kxf5 f2 68. Kxg4 Kc4 69. Kf3 f1=Q+ 70. Nxf1 1-0

[Event "68th Warsaw-ch-A 2019"]
[Site "Warsaw"]
[Date "2019.11.17"]
[Round "6.13"]
[White "Spicak, Krzysztof"]
[Black "Siekierski, Pawel"]
[Result "0-1"]
[ECO "B01"]
[WhiteElo "1874"]
[BlackElo "1959"]
[Annotator "NA RC"]
[PlyCount "98"]
[EventDate "2019.11.14"]
[EventType "swiss"]
[EventCountry "POL"]
[SourceTitle "playchess.com"]
[Source "ChessBase"]
[SourceQuality "1"]
[TimeControl "5400+30"]

1. e4 d5 2. e5 d4 3. Bc4 e6 4. f4 Bd7 5. a4 Nh6 6. Nf3 Bc5 7. c3 dxc3 8. bxc3 O-O 9. d4 Be7 10. O-O c5 11. d5 exd5 12. Bxd5 Nc6 13. c4 Bg4 14. Nc3 Nf5 15. h3 Bxf3 16. Qxf3 Nfd4 17. Qd1 Kh8 18. Be4 f5 19. exf6 gxf6 20. Bxh7 Kxh7 21. Qh5+ Kg7 22. f5 Nxf5 23. Rxf5 Qd4+ 24. Rf2 Rh8 25. Qg4+ Qxg4 26. hxg4 Rh4 27. Bf4 Rah8 28. Rff1 Rxg4 29. g3 Nd4 30. Rae1 Bd8 31. Nd5 Rg6 32. Kg2 Kf7 33. Rh1 Rhg8 34. Rh7+ R6g7 35. Rh5 Re8 36. Rxe8 Kxe8 37. Rh8+ Kd7 38. Bh6 Rf7 39. Be3 Bc7 40. Ra8 a6 41. g4 Be5 42. Bxd4 cxd4 43. Kf3 Rh7 44. a5 Rh3+ 45. Ke4 d3 46. Nb6+ Ke7 47. Ra7 d2 48. Rxb7+ Kd6 49. Nd5 d1=Q 0-1

[Event "68th Warsaw-ch-A 2019"]
[Site "Warsaw"]
[Date "2019.11.17"]
[Round "7.5"]
[White "Sliwerski, Radoslaw"]
[Black "Kaminski, Jan"]
[Result "1-0"]
[ECO "E20"]
[WhiteElo "2091"]
[BlackElo "2024"]
[Annotator "NA RC"]
[PlyCount "43"]
[EventDate "2019.11.14"]
[EventType "swiss"]
[EventCountry "POL"]
[SourceTitle "playchess.com"]
[Source "ChessBase"]
[SourceQuality "1"]
[TimeControl "5400+30"]

1. d4 {[%emt 0:00:00]} Nf6 {[%emt 0:00:00]} 2. c4 {[%emt 0:00:00]} e6 {[%emt 0:00:00]} 3. Nc3 {[%emt 0:00:00]} Bb4 {[%emt 0:00:00]} 4. g3 {[%emt 0:00:00]} c5 {[%emt 0:00:04]} 5. Nf3 {[%emt 0:00:00]} cxd4 {[%emt 0:00:34]} 6. Nxd4 {[%emt 0:00:00]} Nc6 {[%emt 0:00:21]} 7. Bg2 {[%emt 0:02:42]} O-O {[%emt 0:00:41]} 8. O-O {[%emt 0:00:11]} Bxc3 {[%emt 0:00:09]} 9. bxc3 {[%emt 0:00:09]} Na5 {[%emt 0:03:50]} 10. Qd3 {[%emt 0:07:30]} Qc7 {[%emt 0:01:25]} 11. Ba3 {[%emt 0:01:32]} Rd8 {[%emt 0:03:36]} 12. Be7 {[%emt 0:01:43]} Re8 {[%emt 0:00:06]} 13. Nb5 {[%emt 0:00:28]} Qxc4 {[%emt 0:00:34]} 14. Qxc4 {[%emt 0:00:32]} Nxc4 {[%emt 0:00:02]} 15. Bxf6 {[%emt 0:00:08]} gxf6 {[%emt 0:00:19]} 16. Nc7 {[%emt 0:00:02]} Re7 {[%emt 0:00:27]} 17. Nxa8 {[%emt 0:00:27]} d5 {[%emt 0:00:07]} 18. e4 {[%emt 0:00:23]} dxe4 {[%emt 0:01:09]} 19. Bxe4 {[%emt 0:00:03]} Nd2 {[%emt 0:00:13]} 20. Rfd1 {[%emt 0:00:10]} Nxe4 {[%emt 0:00:12]} 21. Rd8+ {[%emt 0:00:01]} Kg7 {[%emt 0:00:01]} 22. Rxc8 {[%emt 0:00:11]} 1-0

[Event "68th Warsaw-ch-A 2019"]
[Site "Warsaw"]
[Date "2019.11.17"]
[Round "7.7"]
[White "Malec, Sebastian"]
[Black "Cyra, Dariusz"]
[Result "1-0"]
[ECO "A22"]
[WhiteElo "2069"]
[BlackElo "1818"]
[Annotator "NA RC"]
[PlyCount "111"]
[EventDate "2019.11.14"]
[EventType "swiss"]
[EventCountry "POL"]
[SourceTitle "playchess.com"]
[Source "ChessBase"]
[SourceQuality "1"]
[TimeControl "5400+30"]

1. c4 {[%emt 0:00:00]} e5 {[%emt 0:00:00]} 2. Nc3 {[%emt 0:00:05]} Nf6 {[%emt 0:00:00]} 3. Nf3 {[%emt 0:00:05]} e4 {[%emt 0:00:13]} 4. Ng5 {[%emt 0:05:11]} b5 {[%emt 0:00:23]} 5. cxb5 $11 {[%emt 0:13:29]} d5 {[%emt 0:00:31]} 6. Qa4 {[%emt 0:01:09]} Bd7 {[%emt 0:06:35]} 7. Nxd5 {[%emt 0:02:45]} Nxd5 {[%emt 0:11:36]} 8. Qxe4+ {[%emt 0:00:04]} Be6 {[%emt 0:00:02]} 9. Nxe6 {[%emt 0:00:05]} fxe6 {[%emt 0:00:25]} 10. Qxe6+ {[%emt 0:00:04]} Be7 {[%emt 0:01:28]} 11. g3 {[%emt 0:01:30]} Qd7 {[%emt 0:13:19]} 12. Bh3 {[%emt 0:20:09]} Qxe6 {[%emt 0:04:20]} 13. Bxe6 {[%emt 0:00:03]} Nb6 {[%emt 0:02:19]} 14. O-O {[%emt 0:10:44]} N8d7 {[%emt 0:02:15]} 15. d4 {[%emt 0:01:07]} Nf6 {[%emt 0:02:16]} 16. a4 {[%emt 0:12:03]} Rd8 {[%emt 0:01:04]} 17. Rd1 {[%emt 0:05:56]} Nbd5 {[%emt 0:02:22]} 18. f3 {[%emt 0:01:59]} Rd6 {[%emt 0:05:52]} 19. Bf5 {[%emt 0:00:07]} g6 {[%emt 0:01:42]} 20. Bc2 {[%emt 0:00:12]} Nb4 {[%emt 0:04:10]} 21. Bb3 {[%emt 0:00:07]} c5 {[%emt 0:00:54]} 22. Bh6 {[%emt 0:03:00]} cxd4 {[%emt 0:06:21]} 23. Bg7 {[%emt 0:00:05]} Rf8 {[%emt 0:00:23]} 24. Rac1 {[%emt 0:01:56]} Bd8 {[%emt 0:04:55]} 25. e4 {[%emt 0:04:59]} Rd7 {[%emt 0:04:23]} 26. Bxf8 {[%emt 0:04:15]} Kxf8 {[%emt 0:00:15]} 27. Rc4 {[%emt 0:00:11]} Ba5 {[%emt 0:00:25]} 28. b6 {[%emt 0:05:48]} d3 {[%emt 0:02:32]} 29. bxa7 {[%emt 0:00:03]} Rxa7 {[%emt 0:00:35]} 30. Rc8+ {[%emt 0:00:20]} Ke7 {[%emt 0:00:33]} 31. e5 {[%emt 0:03:57]} Nd7 {[%emt 0:03:29]} 32. Rh8 {[%emt 0:00:03]} Nxe5 {[%emt 0:00:38]} 33. Rxh7+ {[%emt 0:02:07]} Kd6 {[%emt 0:01:46]} 34. Rxa7 {[%emt 0:00:03]} Bb6+ {[%emt 0:00:01]} 35. Kg2 {[%emt 0:00:02]} Bxa7 {[%emt 0:00:01]} 36. h3 {[%emt 0:00:23]} Kc5 {[%emt 0:05:11]} 37. Rc1+ {[%emt 0:01:44]} Kd6 {[%emt 0:02:04]} 38. f4 {[%emt 0:00:09]} Nec6 {[%emt 0:00:24]} 39. Rd1 {[%emt 0:02:19]} Nd4 {[%emt 0:01:43]} 40. Bc4 {[%emt 0:00:03]} Nf5 {[%emt 0:00:36]} 41. Kf3 {[%emt 0:00:51]} Ne3 {[%emt 0:00:02]} 42. Rxd3+ {[%emt 0:00:04]} Nxd3 {[%emt 0:00:31]} 43. Bxd3 {[%emt 0:00:02]} Nf5 {[%emt 0:01:05]} 44. Bxf5 {[%emt 0:00:41]} gxf5 {[%emt 0:00:01]} 45. g4 {[%emt 0:00:05]} Ke6 {[%emt 0:00:20]} 46. b4 {[%emt 0:00:23]} Bd4 {[%emt 0:00:22]} 47. a5 {[%emt 0:00:43]} Bc3 {[%emt 0:00:02]} 48. a6 {[%emt 0:00:03]} Bd4 {[%emt 0:00:34]} 49. Ke2 {[%emt 0:00:19]} Kd5 {[%emt 0:00:25]} 50. Kd3 {[%emt 0:00:05]} Bb6 {[%emt 0:00:38]} 51. g5 {[%emt 0:00:51]} Ke6 {[%emt 0:00:45]} 52. h4 {[%emt 0:00:04]} Ba7 {[%emt 0:00:28]} 53. h5 {[%emt 0:00:10]} Kf7 {[%emt 0:00:12]} 54. Kc4 {[%emt 0:00:08]} Bb8 {[%emt 0:00:06]} 55. Kd5 {[%emt 0:00:09]} Ke7 {[%emt 0:00:45]} 56. b5 {[%emt 0:00:08]} 1-0